Cogmind - Beta 13 @@@ ROGUE MODE // 2024.06.22 @ 12:24:31 Player: N00Bk1llr Result: Destroyed by DAS Turret with DAS Cannon Performance ------------- Evolutions (1) 500 Regions Visited (5) 1000 Robots Destroyed (49) 245 Value Destroyed (945) 945 Prototype IDs (2) 40 Alien Tech Used (0) 0 Bonus (0) 0 TOTAL SCORE: 2730 Bonus ------- None Cogmind --------- Core Integrity 0/400 Matter 296/300 Energy 100/100 System Corruption 0% Temperature Cool (0) Movement Core (1350) Ox26 Location -9/Exiles Parts ------- > --- POWER (1) -------- (None) > --- PROPULSION (2) --- (None) > --- UTILITY (3) ------ Huge Storage Unit > --- WEAPON (3) ------- (None) > --- INVENTORY (25) --- Improved Ion Engine Reinforced Fission Core Improved Heat Sink Improved Heat Sink High-capacity Matter Pod (200) Transport Network Coupler Hardlight Generator Hardlight Generator Shield Generator Shield Generator Ion Cannon Heavy Assault Rifle Improved Assault Rifle Missile Launcher Missile Launcher Missile Launcher Makeshift Spear Peak State ------------ > --- POWER ------------ Improved Ion Engine > --- PROPULSION ------- Light Treads Light Treads > --- UTILITY ---------- Huge Storage Unit Hardlight Generator Hardlight Generator > --- WEAPON ----------- Heavy Assault Rifle Improved Assault Rifle Missile Launcher > --- INVENTORY -------- Improved Ion Engine Improved Ion Engine Light Treads Light Treads Improved Treads Improved Heat Sink High-capacity Matter Pod Transport Network Coupler Light Armor Plating Hardlight Generator Shield Generator Shield Generator Ion Cannon Heavy Assault Rifle Heavy Assault Rifle Autogun Autogun Improved Assault Rifle Missile Launcher Missile Launcher Missile Launcher [Rating: 23] Favorites ----------- Power Improved Ion Engine Engine Improved Ion Engine Propulsion Light Treads Treads Light Treads Leg Aluminum Leg Utility Huge Storage Unit Device Hardlight Generator Storage Huge Storage Unit Protection Light Armor Plating Weapon Heavy Assault Rifle Energy Cannon Ion Cannon Ballistic Gun Heavy Assault Rifle Launcher Missile Launcher Build | -11 -10 -10 -9 -9 -9 ------- Run | Yrd Mat Min Mat Min Exi Slots Evolved 2 | . . . 2 . . Power . | . . . . . . Propulsion . | . . . . . . Utility 1 | . . . 1 . . Weapon 1 | . . . 1 . . Parts Attached 41 | . 6 1 19 6 9 Power 4 | . . . 3 . 1 Engine 4 | . . . 3 . 1 Core . | . . . . . . Reactor . | . . . . . . Propulsion 10 | . 2 . 3 2 3 Treads 10 | . 2 . 3 2 3 Leg . | . . . . . . Wheel . | . . . . . . Hover . | . . . . . . Flight . | . . . . . . Utility 10 | . 3 1 3 3 . Device 3 | . . . 1 2 . Storage 3 | . 2 1 . . . Processor . | . . . . . . Hackware . | . . . . . . Protection 4 | . 1 . 2 1 . Artifact . | . . . . . . Weapon 17 | . 1 . 10 1 5 Energy Gun . | . . . . . . Energy Cannon 1 | . . . 1 . . Ballistic Gun 13 | . 1 . 8 . 4 Ballistic Cannon . | . . . . . . Launcher 3 | . . . 1 1 1 Special Weapon . | . . . . . . Impact Weapon . | . . . . . . Slashing Weapon . | . . . . . . Piercing Weapon . | . . . . . . Special Melee Weapon . | . . . . . . Unidentified Prototypes . | . . . . . . Parts Lost 25 | . . . 7 4 14 Power 3 | . . . 1 . 2 Propulsion 9 | . . . 3 2 4 Utility 5 | . . . 2 1 2 Weapon 8 | . . . 1 1 6 Highest Loss Streak 7 | . . . 5 3 7 To Critical Strikes 6 | . . . . . 6 Average Slot Usage (%) 96 | . 95 100 93 99 95 Engine 11 | . 14 14 10 11 10 Treads 23 | . 28 28 21 21 21 Device 7 | . . . 7 11 10 Storage 12 | . 16 14 11 11 11 Protection 9 | . 6 14 8 10 7 Ballistic Gun 26 | . 28 28 29 23 25 Launcher 4 | . . . . 9 7 Naked Turns . | . . . . . . Heaviest Build 109 | 12 51 91 107 109 107 Greatest Support 43 | 20 40 40 40 40 43 Greatest Overweight (x) 26 | . 1 2 2 5 26 Average Overweight (x) 1 | . . 1 2 2 2 Largest Inventory Capacity 25 | 8 20 25 25 25 25 Average Capacity 22 | 8 13 21 25 25 25 Most Carried 25 | 6 10 11 25 25 25 Average Carried 18 | 6 8 10 20 22 21 Final Capacity 25 | 8 20 25 25 25 25 Final Carried 25 | 6 10 11 25 22 17 Class Distribution -------------------- 45% | Scavenger-Tank 26% | Mutant 23% | Tank 3% | Gunner Dominant Class ---------------- Mutant | -10/Materials Mutant | -10/Mines Tank | -9/Materials Scavenger-Tank | -9/Mines Scavenger-Tank | -9/Exiles Resources | -11 -10 -10 -9 -9 -9 ----------- Run | Yrd Mat Min Mat Min Exi Matter Collected 2564 | 208 213 138 856 415 734 Remotely . | . . . . . . Salvage Created 1775 | 26 327 . 1107 203 112 Parts 111 | 3 19 . 79 9 1 Haulers Intercepted 5 | . 1 . 4 . . Recyclers Shooed 3 | . . . 3 . . Parts Field Recycled . | . . . . . . Retrieved Matter . | . . . . . . Parts Self-Destructed . | . . . . . . Prevented . | . . . . . . Kills | -11 -10 -10 -9 -9 -9 ------- Run | Yrd Mat Min Mat Min Exi Combat Hostiles Destroyed 46 | . 8 . 18 16 4 Guns 30 | . 8 . 12 9 1 Cannons 2 | . . . 2 . . AOE 14 | . . . 4 7 3 Classes Destroyed 9 | 1 4 . 3 1 . Worker 3 | . . . 2 1 . Tunneler 1 | 1 . . . . . Hauler 5 | . 1 . 4 . . Recycler 5 | . . . 4 1 . Watcher 3 | . 1 . 2 . . Swarmer 14 | . 3 . 8 3 . Grunt 11 | . 5 . 4 2 . Sentry 6 | . . . 6 . . Assembled 14 | . . . . 11 3 Best Kill Streak 8 | 1 3 . 5 8 3 Combat Bots Only 8 | . 3 . 4 8 3 Max Kills in Single Turn 3 | 1 1 . 3 2 2 Gunslinging 1 | . . . . 1 . Exploded 2 | . . . 2 1 2 Melee . | . . . . . . Uniques/NPCs Destroyed 1 | . . . . . 1 8R-AWN (-9/Exiles) Combat | -11 -10 -10 -9 -9 -9 -------- Run | Yrd Mat Min Mat Min Exi Hostile Shots Fired 320 | . 45 . 110 75 90 Missed 77 | . 10 . 30 19 18 Damage Taken 3530 | . 458 . 893 818 1361 Core 553 | . 95 . 101 39 318 Absorbed by Shields 508 | . . . 48 176 284 Core Remaining (%) 81 | 100 . 62 . . . Volleys Fired 205 | 4 49 . 72 32 48 Largest 3 | 2 2 . 3 3 3 Hottest 106 | 40 40 . 106 82 69 Shots Fired 516 | 8 98 . 208 72 130 Gun 473 | 8 98 . 186 56 125 Cannon 20 | . . . 20 . . Launcher 23 | . . . 2 16 5 Special . | . . . . . . Kinetic 473 | 8 98 . 186 56 125 Thermal 20 | . . . 20 . . Explosive 23 | . . . 2 16 5 Electromagnetic . | . . . . . . Robot Hit Streak 11 | 5 8 . 11 7 11 Robot Miss Streak 12 | 2 12 . 4 4 3 Penetration Max . | . . . . . . Secondary Targets 1 | . . . . 1 . Max Gunslinging Chain 1 | . . . . 1 . Shots Hit Robots 299 | 6 50 . 121 33 89 Core Hits 112 | 2 19 . 43 26 22 Critical Kills . | . . . . . . Critical Parts Destroyed 2 | . . . 1 . 1 Critical Strikes 2 | . . . 1 . 1 Destroy 2 | . . . 1 . 1 Melee Attacks . | . . . . . . Impact . | . . . . . . Slashing . | . . . . . . Piercing . | . . . . . . Sneak Attacks . | . . . . . . Combat Hostiles . | . . . . . . Follow-up Attacks . | . . . . . . Damage Inflicted 5156 | 47 510 . 2109 904 1586 Guns 3831 | 47 510 . 1522 405 1347 Cannons 282 | . . . 282 . . Explosions 1011 | . . . 301 471 239 Melee . | . . . . . . Ramming 32 | . . . 4 28 . Kinetic 3831 | 47 510 . 1522 405 1347 Thermal 282 | . . . 282 . . Explosive 1011 | . . . 301 471 239 Electromagnetic . | . . . . . . Impact . | . . . . . . Slashing . | . . . . . . Piercing . | . . . . . . Highest Corruption . | . . . . . . Average Corruption . | . . . . . . Corruption Purged . | . . . . . . Corruption Blocked . | . . . . . . Overload Shots . | . . . . . . Overflow Damage 22 | . . . . 22 . Projectiles . | . . . . . . Explosions 22 | . . . . 22 . Melee . | . . . . . . Knockbacks . | . . . . . . Impact . | . . . . . . Kinetic . | . . . . . . Secondary . | . . . . . . Self-Inflicted Damage 18 | . . . . 18 . Shots 1 | . . . . 1 . Rammed 6 | . . . 2 4 . Targets Rammed 7 | . . . 2 5 . Kicked . | . . . . . . Crushed 1 | . . . . 1 . Highest Temperature 225 | . 24 . 225 168 148 Average Temperature 59 | . 7 . 72 61 58 Received Heat Transfer 593 | . 246 . 194 153 . Effects 3 | . . . 3 . . Interference 3 | . . . 3 . . Siege Activations . | . . . . . . Robots Corrupted . | . . . . . . Combat Hostiles . | . . . . . . Parts Fried . | . . . . . . Impact Corruptions . | . . . . . . Robots Melted . | . . . . . . Combat Hostiles . | . . . . . . Parts Melted . | . . . . . . Heat Transferred 444 | . . . 444 . . Parts Sabotaged . | . . . . . . Parts Stolen . | . . . . . . Parts Stripped . | . . . . . . Power Chain Reactions . | . . . . . . Alert | -11 -10 -10 -9 -9 -9 ------- Run | Yrd Mat Min Mat Min Exi Peak Influence 217 | 5 160 5 217 190 . Initial 84 | . 3 5 . 84 . Average 54 | 1 33 2 116 38 . Maximum Alert Level 1 | . . . 1 . . Low Security (%) 93 | 100 100 100 74 100 . Level 1 6 | . . . 25 . . Level 2 . | . . . . . . Level 3 . | . . . . . . Level 4 . | . . . . . . Level 5 . | . . . . . . High Security . | . . . . . . Max Security . | . . . . . . Squads Dispatched 3 | . 2 . 1 . . Investigation 2 | . 2 . . . . Extermination . | . . . . . . Reinforcement 1 | . . . 1 . . Assault . | . . . . . . Garrison . | . . . . . . Intercept . | . . . . . . Searches Triggered . | . . . . . . Construction Impeded . | . . . . . . Haulers Reinforced . | . . . . . . Active Scanning Responses . | . . . . . . Cargo Convoy Interrupts . | . . . . . . Stealth | -11 -10 -10 -9 -9 -9 --------- Run | Yrd Mat Min Mat Min Exi Distress Signals 4 | . . . 4 . . Communications Jammed . | . . . . . . Distress Signals . | . . . . . . Times Spotted 73 | . 14 . 30 23 6 Peak Tracking Total 10 | . 3 . 5 10 9 Tactical Retreats 6 | . . . 1 2 3 Traps | -11 -10 -10 -9 -9 -9 ------- Run | Yrd Mat Min Mat Min Exi Traps Triggered . | . . . . . . Indirectly . | . . . . . . Trap Hack Attempts . | . . . . . . Triggered . | . . . . . . Disarmed 6 | . . . 6 . . Reprogrammed . | . . . . . . Reused . | . . . . . . Traps Extracted . | . . . . . . Installed . | . . . . . . Triggered . | . . . . . . Machines | -11 -10 -10 -9 -9 -9 ---------- Run | Yrd Mat Min Mat Min Exi Machines Disabled 4 | . . . . 1 3 Max in Single Turn 1 | . . . . 1 1 Machines Repaired . | . . . . . . Machines Dismantled . | . . . . . . Machines Sabotaged . | . . . . . . Overloaded Fab Kills . | . . . . . . Hacking | -11 -10 -10 -9 -9 -9 --------- Run | Yrd Mat Min Mat Min Exi Machines Accessed 15 | . 8 . 7 . . Terminals 13 | . 7 . 6 . . Fabricators . | . . . . . . Repair Stations . | . . . . . . Recycling Units 1 | . 1 . . . . Scanalyzers 1 | . . . 1 . . Garrison Access . | . . . . . . Total Hacks 47 | . 22 . 25 . . Successful 25 | . 9 . 16 . . Failed 22 | . 13 . 9 . . Catastrophic 4 | . 3 . 1 . . Database Lockouts . | . . . . . . Manual 27 | . 18 . 9 . . Terminals 38 | . 21 . 17 . . Fabricators . | . . . . . . Repair Stations . | . . . . . . Recycling Units 1 | . 1 . . . . Scanalyzers 8 | . . . 8 . . Garrison Access . | . . . . . . Terminal Hacks 16 | . 7 . 9 . . Robot Analysis 3 | . 2 . 1 . . Prototype ID Bank 1 | . . . 1 . . Level Access Points 1 | . . . 1 . . Branch Access Points 1 | . 1 . . . . Terminal Index 2 | . 1 . 1 . . Locate Traps 3 | . 2 . 1 . . Disarm Traps 2 | . . . 2 . . Hauler Manifests 2 | . 1 . 1 . . Registered Components 1 | . . . 1 . . Fabricator Hacks . | . . . . . . Repair Station Hacks . | . . . . . . Recycling Unit Hacks . | . . . . . . Scanalyzer 6 | . . . 6 . . Insert Component 3 | . . . 3 . . Analyze 3 | . . . 3 . . Garrison Access Hacks . | . . . . . . Unauthorized Hacks 3 | . 2 . 1 . . Terminals 2 | . 1 . 1 . . Botnet 2 | . 1 . 1 . . Fabricators . | . . . . . . Repair Stations . | . . . . . . Recycling Units 1 | . 1 . . . . Tunnel 1 | . 1 . . . . Scanalyzers . | . . . . . . Garrison Access . | . . . . . . Data Cores Recovered . | . . . . . . Used . | . . . . . . Hacking Detections 11 | . 5 . 6 . . Full Trace Events 1 | . 1 . . . . Feedback Events . | . . . . . . Feedback Blocked . | . . . . . . Robot Schematics Acquired . | . . . . . . Robots Built . | . . . . . . Authchips . | . . . . . . Time . | . . . . . . Total Robot Build Rating . | . . . . . . Part Schematics Acquired 3 | . . . 3 . . Parts Built . | . . . . . . Authchips . | . . . . . . Time . | . . . . . . Total Part Build Rating . | . . . . . . Parts Repaired . | . . . . . . Time . | . . . . . . Parts Recycled . | . . . . . . Recycled Matter . | . . . . . . Retrieved Matter . | . . . . . . Retrieved Components . | . . . . . . Parts Scanalyzed 3 | . . . 3 . . Part Schematics Acquired 3 | . . . 3 . . Parts Damaged . | . . . . . . Bothacking | -11 -10 -10 -9 -9 -9 ------------ Run | Yrd Mat Min Mat Min Exi Used RIF Installer . | . . . . . . Robots Hacked . | . . . . . . Non-combat . | . . . . . . Combat . | . . . . . . Robot Hacks Applied . | . . . . . . Relay Couplers Released . | . . . . . . Fabnet Peak Effective % . | . . . . . . Robots Rewired . | . . . . . . Allies Hacked . | . . . . . . Hacks Repelled . | . . . . . . Allies | -11 -10 -10 -9 -9 -9 -------- Run | Yrd Mat Min Mat Min Exi Total Allies 4 | . . 1 . 3 . Largest Group 3 | . . 1 . 3 3 Highest-Rated Group 40 | . . 31 . 40 40 Highest-Rated Ally 31 | . . 31 . 16 16 Total Orders 11 | . . . . . 11 STAY 3 | . . . . . 3 FOLLOW 2 | . . . . . 2 GUARD 6 | . . . . . 6 Ally Attacks 24 | . . . . . 24 Total Damage 203 | . . . . . 203 Kills 4 | . . . . . 4 Allies Corrupted . | . . . . . . Allies Melted . | . . . . . . Intel | -11 -10 -10 -9 -9 -9 ------- Run | Yrd Mat Min Mat Min Exi Robot Analysis Total 3 | . 2 . 1 . . Derelict Logs Recovered 2 | . . . . 2 . Drone Launches . | . . . . . . Drone Recoveries . | . . . . . . Exploration | -11 -10 -10 -9 -9 -9 ------------- Run | Yrd Mat Min Mat Min Exi Turns Passed 6733 | 12 1019 747 1556 2362 1037 Spaces Moved 2136 | 2 477 284 397 701 275 Core 1 | . . . . . 1 Treads 2133 | . 477 284 397 701 274 Legs 2 | 2 . . . . . Wheels . | . . . . . . Hover . | . . . . . . Flight . | . . . . . . Fastest Speed 120 | 120 160 240 320 320 320 Average Speed 281 | 120 180 263 320 320 324 Slowest Speed 1350 | 120 240 320 320 560 1350 Overloaded Moves . | . . . . . . Propulsion Burnouts . | . . . . . . Robots Hopped . | . . . . . . Cave-ins Triggered . | . . . . . . Exploration Rate (%) 55 | 2 91 60 41 95 46 Regions Visited 5 Branch Regions 3 Pre-discovered Areas 1 | . 1 . . . . Known Exits Taken 1 | . 1 . . . . Unknown Exits Taken 4 | 1 . 1 1 1 . Scrap Searched 3 | . . 2 . 1 . Spaces Dug 17 | . . . . 17 . Terrain Destroyed 182 | . . . 18 149 15 Melee . | . . . . . . Projectile 2 | . . . 2 . . AOE 180 | . . . 16 149 15 Terrain Rammed . | . . . . . . Walls Destroyed . | . . . . . . Machines Disabled . | . . . . . . Actions | -11 -10 -10 -9 -9 -9 --------- Run | Yrd Mat Min Mat Min Exi Total 2487 | 5 554 286 552 744 346 Wait 20 | . 6 . 13 . 1 Move 2131 | 1 476 283 396 700 275 Hop . | . . . . . . Pick Up 51 | . 9 1 33 1 7 Fast Attach 7 | . 2 . 5 . . Attach 20 | . 2 . 6 4 8 Detach . | . . . . . . Swap 14 | . 2 1 8 2 1 Drop 32 | . 8 1 17 . 6 Fire 205 | 4 49 . 72 32 48 Melee . | . . . . . . Ram . | . . . . . . Kick . | . . . . . . Crush 7 | . . . 2 5 . Escape Stasis . | . . . . . . Rewire . | . . . . . . Trap . | . . . . . . Miscellaneous . | . . . . . . Route ------- -11/Scrapyard -10/Materials (discovered 5 exits: *Mat x3 / *Min x2) -10/Mines -9/Materials (discovered 6 exits: Mat x3 / [*Min] / [*Sto x2]) -9/Mines (discovered 4 exits: *Mat x2 / [*Exi] / [*Zio]) -9/Exiles History --------- Turn | Location | Event 1 | -11/Scrapyard | Discovered new exit (range 1) 13 | -11/Scrapyard | Entered Materials 138 | -10/Materials | Discovered new exit (range 3) 300 | -10/Materials | Discovered new exit (range 9) 317 | -10/Materials | Build established: Mutant 521 | -10/Materials | Discovered new exit (range 11) 791 | -10/Materials | Discovered new exit (range 10) 812 | -10/Materials | Identified exit to Mines 1032 | -10/Materials | Entered Mines 1083 | -10/Mines | Met a Derelict bent on vengeance 1179 | -10/Mines | Received a Mining Laser from a helpful Derelict 1689 | -10/Mines | Discovered new exit (range 15) 1779 | -10/Mines | Entered Materials 1779 | -9/Materials | Evolved 2 slots: Utility x1, Weapon x1 1955 | -9/Materials | Lost 5 parts (1p2n1u1w) 1994 | -9/Materials | Discovered new exit (range 16) 2133 | -9/Materials | Discovered new exit (range 6) 2434 | -9/Materials | Discovered new exit (range 15) 2705 | -9/Materials | Build established: Tank 2980 | -9/Materials | Identified exit to Materials 3335 | -9/Materials | Entered Mines 3348 | -9/Mines | Discovered exit to Materials (range 10) 3557 | -9/Mines | Assembled infested the area 3636 | -9/Mines | Lost 3 parts (2n1w) 3659 | -9/Mines | Destroyed 8 combat bots 3700 | -9/Mines | A Derelict revealed a hidden shortcut to a safe place 3846 | -9/Mines | Learned location of 1 exit from Materials 3903 | -9/Mines | Build established: Scavenger-Tank 4280 | -9/Mines | A weapon hastily lodged in a ceiling crevice suddenly fell to the ground 5022 | -9/Mines | Discovered exit to Materials (range 9) 5636 | -9/Mines | Assisted by bots powering up and referring to "LRC-V3" 5652 | -9/Mines | Deemed a non-threat by the Exiles lab entrance 5652 | -9/Mines | Discovered new exit (range 5) 5697 | -9/Mines | Entered Exiles 5697 | -9/Exiles | Accompanied by 3 allies 5787 | -9/Exiles | Met 8R-AWN 5838 | -9/Exiles | Met EX-HEX 5966 | -9/Exiles | Met EX-DEC 6321 | -9/Exiles | Attacked by the Exiles 6456 | -9/Exiles | Core integrity fell below 50% 6488 | -9/Exiles | Lost 6 parts (1p2n1u2w) 6543 | -9/Exiles | Destroyed 8R-AWN 6705 | -9/Exiles | Core integrity fell below 20% 6734 | -9/Exiles | Destroyed by DAS Turret with DAS Cannon Last Messages --------------- 06540_ HV Slug penetrates Wall. 06542_ Earth collapses. 06543_ 8R-AWN destroyed. 06546_ Acquired Hcp. Matter Pod. 06556_ Acquired 102 matter. 06563_ Acquired Rnf. Fission Core. 06567_ Acquired 58 matter. 06573_ Acquired Imp. Heat Sink. 06600_ Extracted 100 matter. 06609_ Extracted 4 matter. 06622_ Extracted 84 energy. 06710_ Acquired 10 matter. 06715_ Machine disabled. 06719_ Lgt. Treads destroyed. 06726_ Autogun destroyed. 06728_ Missile Launcher destroyed. 06728_ Imp. Ion Engine destroyed. 06728_ Hardlight Generator destroyed. 06730_ The unstable cave ceiling collapses. 06730_ Imp. Treads destroyed. Map ----- +----------------------------------------------------+ | ?????????????????????????????????????????????????? | | ?????????????????????????????????????????????????? | | ?????????????????????????????????????????????????? | | ?????????????????????????????????????????????????? | | ?????????????????????????????????????????????????? | | ?????????????????????????????????????????????????? | | ?????????????????????????????????????????????????? | | ?????????????????????????????????????????????????? | | ?????????????????????????????????????????????????? | | ?????????????????????????????????????????????????? | | ?? ??????????????#######?????????????????????????? | | ?? ######???????#!!! "#?????????????????????????? | | ? #""#??????# "#?????????????????????????? | | ? ??????# "#?????????????????????????? | | ? #????## ""#????????????##???????????? | | ?" #####" ""#???????????? """????????? | | ??# ##" ""?????????????" """????????? | | ???# # #??????????????" ????????? | | ??????# #?????????????"" ????????? | | ????###??# = ##????????????"" "#???????? | | ????# ##### % ###?????????? ""????????? | | ???####"""" = ;;#???????????" "?????????# | | #### !! = % #######?????# #????????## | | "! ! = "#;; #%#%%##??### ###?######" | | "! [ ###; %% ####X# #"###"""""" | | "! ##?## %@ """""" " " | | ## # !""""""###???# ; "" """ " | | # ###########?????###; " " | | ##??????????????????#### | | ???????????????????????## | | ????????????????????????# | | ????????????????????????#### | | ???????????????????????????# | | ???????????????????????????# "" | | ???????????????????????????## ### | | ???????????????????????????# ""##?? | | ???????????????????????????# """##??? | | ???????????????????????????" """##???? | | ????????????????????????????? ""#????? | | ????????????????????????????" #?????? | | ????????????????????????????"" ?????? | | ????????????????????????????? ??????? | | ?????????????????????????????" ??????? | | ???????????????????????????????" ???????? | | ?????????????????????????????????????? ????????? | | ?????????????????????????????????????????????????? | | ?????????????????????????????????????????????????? | | ?????????????????????????????????????????????????? | | ?????????????????????????????????????????????????? | | ?????????????????????????????????????????????????? | +----------------------------------------------------+ Best States ------------- Heat Dissipation 28 Energy Generation 12 Energy Capacity 265 Matter Stores 300 Matter Capacity 300 Sight Range 16 Terrain Scan Density 10 Armor Coverage 150 Evasion (%) 40 Recoil Reduction 2 Item Schematics ----------------- Missile Launcher | -9/Materials | Scanalyzed Transport Network Coupler | -9/Materials | Scanalyzed Hcp. Matter Pod | -9/Materials | Scanalyzed Robot Schematics ------------------ None Fabricated ------------ Nothing Alien Tech Used ----------------- None Achievements -------------- None Challenges ------------ None Game ------ Seed CobblerMappingGun Manual? 0 Play Time 00:27:10 Cumulative 65.4 hours Start 2024.06.22 @ 11:58:40 End 2024.06.22 @ 12:24:31 Sessions 1 Manual Loads 0 Difficulty Rogue Special Mode None Game No. 115 Rogue 93 Adventurer 22 Explorer 0 Win Type - Total 1 Types 1/0/0/0/0/0/0/0/0 Lore% 44 Gallery% 57 Achievement% 48 Wizard Run 0 Options --------- Layout 0 ASCII 0 Keyboard 0 Movement Mouse Keybinds 0 Fullscreen 2 Font 18/SmallcapsGlow Map View 76x50 Zoom Use 0% Tactical HUD 1 Map Filters NONE Filters NONE Steam 1 RUN: c0cd9067-6e09-4037-b800-2d6be3db103b